Cogmind - Beta 14 @@@ ROGUE MODE // 2024.10.31 @ 10:47:08 Player: 7604 Result: Self-destructed Performance ------------- Evolutions (2) 1000 Regions Visited (5) 1000 Robots Destroyed (49) 245 Value Destroyed (1377) 1377 Prototype IDs (26) 520 Alien Tech Used (0) 0 Bonus (526) 526 TOTAL SCORE: 4668 Bonus ------- High Alert Combat Kills 56 Follower Combat Kills 170 Aligned with FarCom 300 Cogmind --------- Core Integrity 445/550 Matter 295/300 Energy 44/160 System Corruption 0% Temperature Cool (84) Movement Rolling (100) Location -8/Materials Parts ------- > --- POWER (1) -------- Light Nuclear Core > --- PROPULSION (4) --- Armored Huge Wheel Armored Huge Wheel > --- UTILITY (4) ------ Cryofiber Web Large Storage Unit Improved Light Armor Plating > --- WEAPON (2) ------- Firepult > --- INVENTORY (15) --- Ion Engine Improved Cesium-ion Thruster Faulty Improved Cesium-ion Thruster Improved Cesium-ion Thruster Improved Cesium-ion Thruster Heat Sink High-capacity Battery (250) ECM Suite Light Armor Plating Heavy Armor Plating Hacking Suite Sensor Drone Bay (20/20) Light Assault Rifle Rocket Launcher Peak State ------------ > --- POWER ------------ Light Deuterium Engine > --- PROPULSION ------- Armored Huge Wheel Armored Huge Wheel > --- UTILITY ---------- Cryofiber Web Improved Heat Sink Large Storage Unit Improved Light Armor Plating > --- WEAPON ----------- Firepult > --- INVENTORY -------- Ion Engine Improved Cesium-ion Thruster Improved Cesium-ion Thruster Improved Cesium-ion Thruster Improved Cesium-ion Thruster Heat Sink High-capacity Battery ECM Suite Light Armor Plating Heavy Armor Plating Hacking Suite Sensor Drone Bay Light Assault Rifle Rocket Launcher [Rating: 53] Favorites ----------- Power Ion Engine Engine Ion Engine Power Core Light Nuclear Core Propulsion Aluminum Leg Leg Aluminum Leg Wheel Armored Huge Wheel Utility Targeting Computer Device Improved Heat Sink Storage Medium Storage Unit Processor Targeting Computer Protection Improved Light Armor Plating Weapon Assault Rifle Energy Gun Small Laser Energy Cannon Firepult Ballistic Gun Assault Rifle Build | -11 -10 -10 -10 -9 -8 ------- Run | Yrd Mat Min Exi Min Mat Slots Evolved 4 | . . . . . 4 Power . | . . . . . . Propulsion 2 | . . . . . 2 Utility 2 | . . . . . 2 Weapon . | . . . . . . Parts Attached 45 | 6 12 9 2 1 15 Power 10 | 1 2 3 . . 4 Engine 9 | 1 2 3 . . 3 Core 1 | . . . . . 1 Reactor . | . . . . . . Propulsion 14 | 2 6 1 . 1 4 Treads . | . . . . . . Leg 12 | 2 6 1 . 1 2 Wheel 2 | . . . . . 2 Hover . | . . . . . . Flight . | . . . . . . Utility 11 | 1 2 . 1 . 7 Device 4 | . . . . . 4 Storage 3 | 1 1 . 1 . . Processor 1 | . 1 . . . . Hackware . | . . . . . . Protection 3 | . . . . . 3 Artifact . | . . . . . . Weapon 10 | 2 2 5 1 . . Energy Gun 2 | 1 . 1 . . . Energy Cannon 1 | . . . 1 . . Ballistic Gun 7 | 1 2 4 . . . Ballistic Cannon . | . . . . . . Launcher . | . . . . . . Special Weapon . | . . . . . . Impact Weapon . | . . . . . . Slashing Weapon . | . . . . . . Piercing Weapon . | . . . . . . Special Melee Weapon . | . . . . . . Unidentified Prototypes 1 | . . . . . 1 Parts Lost 7 | . 3 2 . . 2 Power 2 | . . 1 . . 1 Propulsion 1 | . 1 . . . . Utility 1 | . . . . . 1 Weapon 3 | . 2 1 . . . Highest Loss Streak 2 | . 2 1 . . 1 To Critical Strikes . | . . . . . . Average Slot Usage (%) 90 | . 98 99 88 85 77 Engine 13 | . 14 13 14 14 8 Leg 25 | . 27 28 28 28 13 Wheel 1 | . . . . . 11 Device 3 | . . . . . 17 Storage 13 | . 14 14 14 14 9 Processor 12 | . 13 14 14 14 6 Energy Gun 1 | . 4 . . . . Energy Cannon 6 | . . . 11 14 9 Ballistic Gun 12 | . 22 27 5 . . Peak Build Rating 53 | 6 8 9 27 27 53 Average Rating 20 | 4 7 8 23 26 45 On Entrance 12 | . 6 8 9 26 27 Naked Turns . | . . . . . . Heaviest Build 62 | 11 18 18 47 47 62 Greatest Support 56 | 20 20 20 20 20 56 Greatest Overweight (x) 2 | . 1 . 2 2 1 Average Overweight (x) . | . . . . 2 . Largest Inventory Capacity 15 | 8 10 10 15 15 15 Average Capacity 11 | 6 9 10 10 15 15 Most Carried 15 | 2 10 10 10 12 15 Average Carried 9 | . 6 9 9 10 12 Final Capacity 15 | 8 10 10 15 15 15 Final Carried 15 | 2 10 10 9 12 15 Class Distribution -------------------- 81% | Mutant 18% | Scavenger-Mutant Dominant Class ---------------- Mutant | -10/Materials Scavenger-Mutant | -10/Mines Mutant | -10/Exiles Mutant | -9/Mines Mutant | -8/Materials Resources | -11 -10 -10 -10 -9 -8 ----------- Run | Yrd Mat Min Exi Min Mat Matter Collected 895 | 223 274 227 . 31 140 Remotely . | . . . . . . Salvage Created 1712 | . 417 263 . 40 992 Parts 85 | . 33 25 . . 27 Haulers Intercepted 1 | . . . . . 1 Recyclers Shooed 3 | . . . . 1 2 Parts Field Recycled . | . . . . . . Retrieved Matter . | . . . . . . Parts Self-Destructed . | . . . . . . Prevented . | . . . . . . Kills | -11 -10 -10 -10 -9 -8 ------- Run | Yrd Mat Min Exi Min Mat Combat Hostiles Destroyed 38 | . 10 14 . 1 13 Guns 24 | . 10 14 . . . Cannons 2 | . . . . . 2 AOE 6 | . . . . . 6 Classes Destroyed 10 | . 6 . . . 4 Worker 2 | . 1 . . . 1 Builder 3 | . 2 . . . 1 Hauler 1 | . . . . . 1 Recycler 1 | . . . . . 1 Operator 2 | . 1 . . . 1 Watcher 2 | . 1 . . . 1 Swarmer 15 | . 3 12 . . . Grunt 16 | . 7 2 . 1 6 Sentry 5 | . . . . . 5 Hunter 2 | . . . . . 2 Best Kill Streak 5 | . 5 3 . 1 5 Combat Bots Only 4 | . 4 3 . 1 4 Max Kills in Single Turn 2 | . 2 2 . 1 2 Gunslinging 1 | . . 1 . . . Exploded 1 | . . . . . 1 Melee . | . . . . . . Uniques/NPCs Destroyed . | . . . . . . Combat | -11 -10 -10 -10 -9 -8 -------- Run | Yrd Mat Min Exi Min Mat Hostile Shots Fired 219 | . 71 76 . . 72 Missed 64 | . 17 25 . . 22 Damage Taken 2075 | . 604 466 . . 1005 Core 290 | . 88 97 . . 105 Absorbed by Shields . | . . . . . . Core Remaining (%) 63 | 100 . . . 26 . Volleys Fired 105 | . 40 38 . 2 25 Largest 2 | . 2 2 . 1 1 Hottest 250 | . 60 60 . 250 250 Shots Fired 183 | . 80 76 . 2 25 Gun 156 | . 80 76 . . . Cannon 27 | . . . . 2 25 Launcher . | . . . . . . Special . | . . . . . . Kinetic 137 | . 65 72 . . . Thermal 46 | . 15 4 . 2 25 Explosive . | . . . . . . Electromagnetic . | . . . . . . Robot Hit Streak 13 | . 13 5 . . 10 Robot Miss Streak 4 | . 4 4 . . 4 Penetration Max . | . . . . . . Secondary Targets 4 | . . 4 . . . Max Gunslinging Chain 1 | . . 1 . . . Shots Hit Robots 111 | . 47 42 . . 22 Core Hits 80 | . 22 21 . 4 33 Critical Kills . | . . . . . . Critical Parts Destroyed . | . . . . . . Critical Strikes . | . . . . . . Melee Attacks . | . . . . . . Impact . | . . . . . . Slashing . | . . . . . . Piercing . | . . . . . . Sneak Attacks . | . . . . . . Combat Hostiles . | . . . . . . Follow-up Attacks . | . . . . . . Damage Inflicted 2466 | . 568 485 . 171 1242 Guns 1032 | . 568 464 . . . Cannons 249 | . . . . 23 226 Explosions 1161 | . . . . 145 1016 Melee . | . . . . . . Ramming 24 | . . 21 . 3 . Kinetic 903 | . 473 430 . . . Thermal 1539 | . 95 34 . 168 1242 Explosive . | . . . . . . Electromagnetic . | . . . . . . Impact . | . . . . . . Slashing . | . . . . . . Piercing . | . . . . . . Highest Corruption . | . . . . . . Average Corruption . | . . . . . . Corruption Purged . | . . . . . . Corruption Blocked . | . . . . . . Overload Shots . | . . . . . . Overflow Damage . | . . . . . . Projectiles . | . . . . . . Explosions . | . . . . . . Melee . | . . . . . . Knockbacks . | . . . . . . Impact . | . . . . . . Kinetic . | . . . . . . Secondary . | . . . . . . Self-Inflicted Damage 231 | . . . . . 231 Shots 16 | . . . . . 16 Rammed . | . . . . . . Targets Rammed 6 | . . 3 . 3 . Kicked 6 | . . 3 . 3 . Crushed . | . . . . . . Highest Temperature 400 | . 12 40 . 400 387 Average Temperature 112 | . 7 19 . 206 134 Received Heat Transfer 591 | . 105 81 . . 405 Effects 4 | . . . . 1 3 Shutdowns 1 | . . . . . 1 Interference 2 | . . . . . 2 Damage (minor) 1 | . . . . 1 . Siege Activations . | . . . . . . Robots Corrupted . | . . . . . . Combat Hostiles . | . . . . . . Parts Fried . | . . . . . . Impact Corruptions . | . . . . . . Robots Melted 8 | . . . . 1 7 Combat Hostiles 6 | . . . . 1 5 Parts Melted 29 | . 1 . . 4 24 Heat Transferred 9340 | . 225 75 . 1200 7840 Parts Sabotaged . | . . . . . . Parts Stolen . | . . . . . . Parts Stripped . | . . . . . . Power Chain Reactions . | . . . . . . Alert | -11 -10 -10 -10 -9 -8 ------- Run | Yrd Mat Min Exi Min Mat Peak Influence 646 | . 176 213 . 152 646 Initial 59 | . . 13 . . 59 Average 105 | . 91 54 . 39 283 Maximum Alert Level 2 | . . 1 . . 2 Low Security (%) 87 | 100 100 99 . 100 41 Level 1 6 | . . . . . 33 Level 2 5 | . . . . . 25 Level 3 . | . . . . . . Level 4 . | . . . . . . Level 5 . | . . . . . . High Security . | . . . . . . Max Security . | . . . . . . Squads Dispatched 8 | . 3 . . . 5 Investigation 2 | . 2 . . . . Extermination . | . . . . . . Reinforcement 3 | . 1 . . . 2 Assault 1 | . . . . . 1 Garrison 2 | . . . . . 2 Intercept . | . . . . . . Searches Triggered . | . . . . . . Construction Impeded 1 | . . . . . 1 Haulers Reinforced . | . . . . . . Active Scanning Responses . | . . . . . . Cargo Convoy Interrupts . | . . . . . . Stealth | -11 -10 -10 -10 -9 -8 --------- Run | Yrd Mat Min Exi Min Mat Distress Signals 6 | . 3 . . . 3 Communications Jammed . | . . . . . . Distress Signals . | . . . . . . Times Spotted 59 | . 18 15 . 3 23 Peak Tracking Total 5 | . 5 3 . 3 5 Tactical Retreats 6 | . 2 1 . . 3 Traps | -11 -10 -10 -10 -9 -8 ------- Run | Yrd Mat Min Exi Min Mat Traps Triggered 6 | . 5 . . . 1 Indirectly . | . . . . . . Trap Hack Attempts . | . . . . . . Triggered . | . . . . . . Disarmed . | . . . . . . Reprogrammed . | . . . . . . Reused . | . . . . . . Traps Extracted . | . . . . . . Installed . | . . . . . . Triggered . | . . . . . . Machines | -11 -10 -10 -10 -9 -8 ---------- Run | Yrd Mat Min Exi Min Mat Machines Disabled 4 | . . . . . 4 Max in Single Turn 1 | . . . . . 1 Garrison Access 1 | . . . . . 1 Machines Repaired . | . . . . . . Machines Dismantled . | . . . . . . Machines Sabotaged . | . . . . . . Overloaded Fab Kills . | . . . . . . Hacking | -11 -10 -10 -10 -9 -8 --------- Run | Yrd Mat Min Exi Min Mat Machines Accessed 13 | . 8 1 1 . 3 Terminals 9 | . 7 . . . 2 Fabricators . | . . . . . . Repair Stations . | . . . . . . Recycling Units 1 | . 1 . . . . Scanalyzers . | . . . . . . Garrison Access 1 | . . . . . 1 Total Hacks 37 | . 28 1 1 . 7 Successful 19 | . 16 1 1 . 1 Failed 17 | . 11 . . . 6 Catastrophic 2 | . 1 . . . 1 Database Lockouts 1 | . 1 . . . . Manual 23 | . 19 . 1 . 3 Terminals 30 | . 27 . . . 3 Fabricators . | . . . . . . Repair Stations . | . . . . . . Recycling Units 1 | . 1 . . . . Scanalyzers . | . . . . . . Garrison Access 4 | . . . . . 4 Terminal Hacks 13 | . 11 1 1 . . Record 1 | . 1 . . . . Part Schematic 1 | . 1 . . . . Robot Analysis 3 | . 3 . . . . Prototype ID Bank 1 | . 1 . . . . Open Door 1 | . . 1 . . . Branch Access Points 1 | . 1 . . . . Alert Level 1 | . 1 . . . . Unreport Threat 1 | . 1 . . . . Locate Traps 1 | . 1 . . . . Dispatch Records 1 | . 1 . . . . Derelict Proto ID Bank 1 | . . . 1 . . Fabricator Hacks . | . . . . . . Repair Station Hacks . | . . . . . . Recycling Unit Hacks 1 | . 1 . . . . Retrieve Components 1 | . 1 . . . . Scanalyzer . | . . . . . . Garrison Access Hacks . | . . . . . . Unauthorized Hacks 5 | . 4 . . . 1 Terminals 5 | . 4 . . . 1 Botnet 4 | . 3 . . . 1 Operators 1 | . 1 . . . . Fabricators . | . . . . . . Repair Stations . | . . . . . . Recycling Units . | . . . . . . Scanalyzers . | . . . . . . Garrison Access . | . . . . . . Data Cores Recovered . | . . . . . . Used . | . . . . . . Hacking Detections 10 | . 7 . . . 3 Full Trace Events 1 | . . . . . 1 Feedback Events . | . . . . . . Feedback Blocked . | . . . . . . Robot Schematics Acquired . | . . . . . . Robots Built . | . . . . . . Authchips . | . . . . . . Time . | . . . . . . Total Robot Build Rating . | . . . . . . Part Schematics Acquired 1 | . 1 . . . . Parts Built . | . . . . . . Authchips . | . . . . . . Time . | . . . . . . Total Part Build Rating . | . . . . . . Parts Repaired . | . . . . . . Time . | . . . . . . Parts Recycled . | . . . . . . Recycled Matter . | . . . . . . Retrieved Matter . | . . . . . . Retrieved Components 7 | . 7 . . . . Parts Scanalyzed . | . . . . . . Part Schematics Acquired . | . . . . . . Parts Damaged . | . . . . . . Bothacking | -11 -10 -10 -10 -9 -8 ------------ Run | Yrd Mat Min Exi Min Mat Used RIF Installer . | . . . . . . Robots Hacked . | . . . . . . Non-combat . | . . . . . . Combat . | . . . . . . Robot Hacks Applied . | . . . . . . Relay Couplers Released 3 | . . . . . 3 Machine Destruction 3 | . . . . . 3 Fabnet Peak Effective % . | . . . . . . Robots Rewired . | . . . . . . Allies Hacked . | . . . . . . Hacks Repelled . | . . . . . . Allies | -11 -10 -10 -10 -9 -8 -------- Run | Yrd Mat Min Exi Min Mat Total Allies 3 | . . . . 3 . Largest Group 3 | . . . . 3 2 Highest-Rated Group 40 | . . . . 40 24 Highest-Rated Ally 16 | . . . . 16 16 Total Orders 1 | . . . . . 1 EXPLORE 1 | . . . . . 1 Ally Attacks 45 | . . . . 33 12 Total Damage 457 | . . . . 323 134 Kills 6 | . . . . 5 1 Allies Corrupted . | . . . . . . Allies Melted . | . . . . . . Intel | -11 -10 -10 -10 -9 -8 ------- Run | Yrd Mat Min Exi Min Mat Robot Analysis Total 3 | . 3 . . . . Derelict Logs Recovered 3 | . . 1 . 2 . Drone Launches 1 | . . . . . 1 Drone Recoveries 1 | . . . . . 1 Exploration | -11 -10 -10 -10 -9 -8 ------------- Run | Yrd Mat Min Exi Min Mat Turns Passed 4074 | 76 836 1054 668 753 687 Spaces Moved 2377 | 61 519 751 382 278 386 Core 10 | 10 . . . . . Treads . | . . . . . . Legs 2067 | 51 519 751 382 278 86 Wheels 300 | . . . . . 300 Hover . | . . . . . . Flight . | . . . . . . Fastest Speed 50 | 50 120 120 120 260 100 Average Speed 144 | 108 120 120 174 260 120 Slowest Speed 260 | 120 190 120 260 260 190 Overloaded Moves . | . . . . . . Propulsion Burnouts . | . . . . . . Robots Hopped . | . . . . . . Cave-ins Triggered . | . . . . . . Exploration Rate (%) 59 | 5 67 99 87 70 30 Regions Visited 5 Branch Regions 3 Pre-discovered Areas 1 | . . 1 . . . Known Exits Taken 1 | . 1 . . . . Unknown Exits Taken 4 | 1 . 1 1 1 . Scrap Searched 2 | . . 1 . 1 . Spaces Dug . | . . . . . . Terrain Destroyed 148 | . . . . 16 132 Melee . | . . . . . . Projectile 9 | . . . . 1 8 AOE 139 | . . . . 15 124 Terrain Rammed . | . . . . . . Walls Destroyed . | . . . . . . Machines Disabled . | . . . . . . Actions | -11 -10 -10 -10 -9 -8 --------- Run | Yrd Mat Min Exi Min Mat Total 2834 | 68 654 838 387 302 585 Wait 254 | . 69 27 . 17 141 Move 2372 | 60 518 750 381 277 386 Hop . | . . . . . . Pick Up 20 | 2 8 3 . 2 5 Fast Attach 17 | 6 3 1 1 . 6 Attach 9 | . 2 2 . . 5 Detach 7 | . 1 . . . 6 Swap 19 | . 7 6 1 1 4 Drop 25 | . 6 8 4 . 7 Fire 105 | . 40 38 . 2 25 Melee . | . . . . . . Ram . | . . . . . . Kick 6 | . . 3 . 3 . Crush . | . . . . . . Escape Stasis . | . . . . . . Rewire . | . . . . . . Trap . | . . . . . . Miscellaneous . | . . . . . . Route ------- -11/Scrapyard -10/Materials (discovered 4 exits: [*Mat x2] / *Min x2) -10/Mines (discovered 4 exits: [*Mat x2] / *Exi / [*Sub]) -10/Exiles -9/Mines -8/Materials (discovered 1 exit: [*Fac]) History --------- Turn | Location | Event 8 | -11/Scrapyard | Discovered new exit (range 15) 77 | -11/Scrapyard | Entered Materials 87 | -10/Materials | Identified exit to Mines 300 | -10/Materials | Build established: Mutant 702 | -10/Materials | Discovered new exit (range 15) 878 | -10/Materials | Discovered new exit (range 11) 891 | -10/Materials | Central database locked down 913 | -10/Materials | Entered Mines 930 | -10/Mines | Found the Drone Emporium 935 | -10/Mines | Learned location of Mines (-9) 938 | -10/Mines | Found Prototype Device 982 | -10/Mines | Discovered new exit (range 7) 1298 | -10/Mines | Core integrity fell below 50% 1362 | -10/Mines | Discovered new exit (range 7) 1375 | -10/Mines | Build established: Scavenger-Mutant 1701 | -10/Mines | Discovered new exit (range 13) 1823 | -10/Mines | Received a Rocket Launcher from a helpful Derelict 1838 | -10/Mines | Deemed a non-threat by the Exiles lab entrance 1885 | -10/Mines | Build established: Mutant 1963 | -10/Mines | Discovered new exit (range 5) 1967 | -10/Mines | Entered Exiles 1997 | -10/Exiles | Met 8R-AWN 2017 | -10/Exiles | Met EX-HEX 2049 | -10/Exiles | Met EX-BIN 2065 | -10/Exiles | Aligned with FarCom system 2066 | -10/Exiles | Given EX-Vault access code 2099 | -10/Exiles | Opened EX-Vault 2109 | -10/Exiles | Found Firepult 2152 | -10/Exiles | Warned to stay clear of 0b10 Research branches 2209 | -10/Exiles | Met EX-DEC 2273 | -10/Exiles | Visited The Gauntlet 2603 | -10/Exiles | Discovered new exit (range 14) 2635 | -10/Exiles | Left Exiles lab with Firepult 2635 | -10/Exiles | Entered Mines 2693 | -9/Mines | Assisted by bots powering up and referring to "LRC-V3" 3288 | -9/Mines | Learned 2 Materials zone layouts 3317 | -9/Mines | Discovered new exit (range 15) 3388 | -9/Mines | Entered Materials 3388 | -8/Materials | Accompanied by 2 allies 3388 | -8/Materials | Evolved 4 slots: Propulsion x2, Utility x2 3391 | -8/Materials | Identified Sensor Drone Bay 3470 | -8/Materials | Garrison activated, responded to threat 3544 | -8/Materials | Discovered new exit (range 15) 3815 | -8/Materials | Garrison activated, responded to threat 4075 | -8/Materials | Self-destructed Last Messages --------------- 04039_ U-05 Engineer lays Concrete. 04042_ U-05 Engineer builds a Wall. 04043_ U-05 Engineer lays Concrete. 04045_ U-05 Engineer builds a Wall. 04049_ U-05 Engineer lays Concrete. 04049_ Critical hit (Burn: +37). 04050_ U-05 Engineer lays Concrete. 04057_ Critical hit (Burn: +37). 04059_ U-05 Engineer lays Concrete. 04061_ K-01 Serf collects debris. 04062_ Y-45 Defender destroyed. 04062_ U-05 Engineer lays Concrete. 04063_ Critical hit (Burn: +37). 04064_ U-05 Engineer lays Concrete. 04066_ U-05 Engineer builds a Wall. 04066_ U-05 Engineer lays Concrete. 04071_ Imp. Heat Sink destroyed. 04071_ U-05 Engineer lays Concrete. 04072_ U-05 Engineer sends out distress signal. 04074_ K-01 Serf collects debris. Map ----- +----------------------------------------------------+ | #??????????????????# ########" #?????????????? | | ##??###+###????????# #??????#" #?????????????? | | # #????????# #??????#" #?????????????? | | % ########## ##?????## #?????????????? | | ==#"*[#"""## ##????## ##????????????? | | %= %% [%=![%[[[[ #???## ##??"?????????? | | ##### #""##"""## ###???# ## """????????? | | ###### ########### "#????## # # #?? | | # #?????????############ % ! # #?? | | # #?????????????# ####### ### | | "" + #??############ % #???# | | "" # #### #???# | | "" =# % ############### #???# | | "" # ####??????????# # ###???# ### | | # C # ##????????# "* ##?????# #?? | | ###+## % ;# #####??? =%= #?????# #?? | | ??# ## # k #?? """ "#?????# #?? | | ??# ## # % #?# """ "#?????# #?? | | ??# ## #u %%"" #?# """ "#?????# #?? | | ??# ## Y % "" #?# T#?????# #?? | | ### ## """ # [u= ""% #?# ?"" "#?????# #?? | | # """" # %!%! #?#! ??? "#?????# #?? | | # """" # [= #?# ??? "??????# #?? | | T # * # [%! #?# ??? ??????# #?? | | # # ########+###??##### ### | | # *== g @ a | | # *= | | # *= | | ###### ###################################### | | #???????????????????????????????????????????? | | ????????????????????????????????##########? | | ??????????????????????????????? #? | | ## ####?????????????????????????????????????????? | | ?? #????????????????????????????????????????????? | | ?? #????????????????????????????????????????????? | | ?? #????????????????????????????????????????????? | | ?? ?????????????????????????????????????????????? | | ?????????????????????????????????????????????????? | | ?????????????????????????????????????????????????? | | ?????????????????????????????????????????????????? | | ?????????????????????????????????????????????????? | | ?????????????????????????????????????????????????? | | ?????????????????????????????????????????????????? | | ?????????????????????????????????????????????????? | | ?????????????????????????????????????????????????? | | ?????????????????????????????????????????????????? | | ?????????????????????????????????????????????????? | | ?????????????????????????????????????????????????? | | ?????????????????????????????????????????????????? | | ?????????????????????????????????????????????????? | +----------------------------------------------------+ Best States ------------- Heat Dissipation 59 Energy Generation 14 Energy Capacity 250 Matter Stores 300 Matter Capacity 300 Sight Range 16 Terrain Scan Density 10 Base Temperature (-) 100 Armor Coverage 150 Evasion (%) 55 Targeting Accuracy 5 Item Schematics ----------------- Med. Storage Unit | -10/Materials | Hacked Robot Schematics ------------------ None Fabricated ------------ Nothing Alien Tech Used ----------------- None Achievements -------------- None Challenges ------------ None Game ------ Seed WardroneCooledBotcube Manual? 0 Play Time 00:32:32 Cumulative 135.0 hours Start 2024.10.31 @ 10:15:08 End 2024.10.31 @ 10:47:08 Sessions 1 Manual Loads 0 Difficulty Rogue Special Mode None Game No. 67 Rogue 4 Adventurer 63 Explorer 0 Win Type - Total 6 Types 6/0/0/0/0/0/0/0/0 Lore% 64 Gallery% 65 Achievement% 53 Wizard Run 0 Options --------- Layout 1 ASCII 0 Keyboard 1 Movement Vi Keybinds 0 Fullscreen 1 Font 28/Terminus Map View 50x43 Zoom Use 0% Tactical HUD 1 Map Filters NONE Filters NONE Steam 1 RUN: d5773ffb-3d5e-408a-8111-32e51300c7b3